bitfinex/quotes_ETHUSD_20241207
["timestamp","ask_amount","ask_price","bid_price","bid_amount"]
[1733572396475,0.05779774,4001.6,4001.5,1.87417117]
[1733572396673,2.34447305,4002.2,4001.5,1.87417117]
[1733572396674,1.04772904,4002.1,4001.5,1.87417117]
[1733572396901,0.05779774,4001.6,4001.5,1.95226659]
[1733572397064,1.04772904,4002.1,4001.5,2.32242912]
[1733572397263,0.05779774,4001.6,4001.5,1.87417117]
[1733572397462,2.34447305,4002.2,4001.5,3.70160637]
[1733572397664,1.04772904,4002.2,4001.8,1.07917117]
[1733572397881,1.79056783,4002.3,4001.8,1.07917117]
[1733572398803,0.74283879,4002.3,4001.8,1.07917117]
[1733572399011,1.79056783,4002.3,4001.8,1.07917117]
[1733572399169,0.74283879,4002.3,4001.8,1.07917117]
[1733572399595,1.79056783,4002.3,4001.8,1.07917117]
[1733572400290,1.79056783,4002.3,4001.5,1.87417117]
[1733572400501,0.7535,4002.0,4001.5,0.795]
[1733572400805,0.7535,4002.0,4001.2,1.07917117]
[1733572400806,0.7535,4002.0,4001.3,1.74942]
[1733572401010,0.7535,4002.0,4001.4,0.07809449]
[1733572401208,0.7535,4002.0,4001.2,1.89417117]
[1733572401506,1.80122904,4002.0,4001.2,1.07917117]
[1733572401807,1.04772904,4001.9,4001.2,1.07917117]
[1733572403081,1.80122904,4002.0,4001.3,0.07809802]
[1733572403275,1.80122904,4002.0,4001.2,1.07917117]
[1733572403476,1.04772904,4001.9,4001.3,0.07809802]
[1733572403807,1.04772904,4001.9,4001.2,1.07917117]
[1733572404180,1.04772904,4001.9,4001.3,0.07810099]
[1733572404385,1.04772904,4001.9,4001.2,1.07917117]
[1733572404571,1.04772904,4001.9,4001.3,0.07810058]
[1733572404775,1.04772904,4001.9,4001.2,1.07917117]
[1733572404975,1.04772904,4001.9,4001.3,0.07810044]
[1733572405205,1.04772904,4001.9,4001.2,1.07917117]
[1733572405394,1.04772904,4001.9,4001.3,0.07810039]
[1733572405594,1.04772904,4001.9,4001.2,1.07917117]
[1733572405906,1.04772904,4001.9,4001.3,0.07809947]
[1733572406117,1.04772904,4001.9,4001.2,1.07917117]
[1733572406283,1.04772904,4001.8,4001.3,0.07809997]
[1733572406490,2.34426602,4001.9,4001.2,1.07917117]
[1733572406692,1.80122904,4002.0,4001.3,0.07810084]
[1733572407021,1.80122904,4002.0,4001.4,0.07810084]
[1733572407233,1.80122904,4002.0,4001.5,0.07810084]
[1733572407425,1.80122904,4002.0,4001.5,1.07917117]
[1733572408832,0.05787234,4001.9,4001.5,1.07917117]
[1733572409190,0.05787234,4001.9,4001.8,1.07917117]
[1733572409634,1.04772904,4002.1,4001.8,1.07917117]
[1733572409835,0.05784748,4001.9,4001.8,1.07917117]
[1733572410427,0.05784748,4001.9,4001.8,3.264707]
[1733572410603,3.08710481,4002.3,4001.9,1.74915]
[1733572410604,0.74283879,4002.3,4001.9,1.74915]
[1733572410802,0.74283879,4002.3,4002.1,1.07917117]
[1733572411608,0.74283879,4002.3,4002.2,0.07808515]
[1733572413299,0.74283879,4002.3,4002.2,0.83198515]
[1733572414532,0.74283879,4002.3,4002.2,1.02310078]
[1733572415840,2.08931315,4003.0,4002.3,0.7539]
[1733572415841,1.04772904,4003.0,4002.3,0.7539]
[1733572416023,1.04772904,4003.2,4002.9,1.07917117]
[1733572416210,1.04772904,4003.3,4002.9,1.07917117]
[1733572417337,1.04772904,4003.4,4002.9,1.07917117]
[1733572417695,1.04772904,4003.4,4002.9,3.58180117]
[1733572417914,1.04772904,4003.4,4002.9,3.93998129]
[1733572418152,1.04772904,4003.4,4002.9,2.19125129]
[1733572418314,2.34312322,4003.7,4003.3,0.7539]
[1733572418515,0.7678,4004.2,4003.7,1.74835]
[1733572418516,1.04772904,4004.0,4003.7,1.74835]
[1733572418771,1.04772904,4004.1,4003.6,1.07917117]
[1733572419043,1.04772904,4004.1,4003.6,2.82757117]
[1733572419344,1.04772904,4004.2,4003.6,2.82757117]
[1733572419499,1.04772904,4004.2,4003.7,1.74837]
[1733572419832,1.57198443,4004.4,4003.7,1.74837]
[1733572419833,1.04772904,4004.4,4003.7,1.74837]
[1733572420034,1.04772904,4004.3,4003.7,1.74837]
[1733572420341,2.34272958,4004.4,4003.7,1.74837]
[1733572420541,1.04772904,4004.4,4003.7,1.74837]
[1733572420697,1.04772904,4004.4,4003.4,2.03969423]
[1733572420899,1.04772904,4004.4,4003.5,1.74846]
[1733572421321,0.7678,4004.5,4003.5,1.74846]
[1733572421322,1.81552904,4004.5,4003.5,1.74846]
[1733572421954,1.04772904,4004.4,4003.5,1.74846]
[1733572422264,1.81552904,4004.5,4003.5,0.51286981]
[1733572422427,1.81552904,4004.5,4003.6,1.74841]
[1733572423245,0.7678,4004.5,4003.7,1.74837]
[1733572424133,0.0548524,4004.4,4003.8,0.799]
[1733572424323,0.0548524,4004.4,4004.0,1.74824]
[1733572424525,2.34114939,4004.8,4004.0,2.23647538]
[1733572424742,2.34114939,4004.8,4004.1,0.799]
[1733572424743,0.05512982,4004.3,4004.1,0.799]
[1733572424945,1.04772904,4004.8,4004.1,0.799]
[1733572425152,0.0551381,4004.2,4004.1,0.799]
[1733572425356,1.04772904,4004.8,4004.1,0.799]
[1733572425824,0.0551381,4004.7,4004.1,0.799]
[1733572426433,1.04772904,4004.9,4004.1,0.799]
[1733572427163,0.05586693,4004.8,4004.1,1.053724]
[1733572427376,0.05586693,4004.8,4004.1,2.801924]
[1733572427665,0.05586693,4004.7,4004.1,2.801924]
[1733572427824,1.04772904,4005.1,4004.1,2.801924]
[1733572428024,1.04772904,4005.1,4004.2,1.74812]
[1733572428226,0.05586693,4005.0,4004.3,1.74811]
[1733572429044,1.86302904,4005.2,4004.3,1.74811]
[1733572429242,0.05586693,4004.9,4004.3,1.74811]
[1733572429461,1.04772904,4005.2,4004.3,1.74811]
[1733572429764,0.05586693,4004.8,4004.4,0.33155298]
[1733572429966,1.04772904,4005.2,4004.4,0.33155298]
[1733572430166,0.05586693,4004.7,4004.4,0.33155298]
[1733572430342,2.33992201,4005.3,4004.4,0.33155298]
[1733572430543,1.04772904,4005.3,4004.4,0.33155298]
[1733572430753,0.05586693,4005.2,4004.5,0.25933588]
[1733572430973,0.8153,4005.1,4004.5,0.25933588]
[1733572431170,0.8153,4005.1,4004.1,1.053724]
[1733572431683,0.05586693,4005.0,4004.1,1.053724]
[1733572432763,1.80368693,4005.0,4004.1,1.053724]
[1733572441468,0.05586693,4005.0,4004.1,1.053724]
[1733572442089,0.05586693,4005.0,4004.2,0.8207]
[1733572442380,0.7350288,4005.4,4004.7,0.8207]
[1733572442577,0.05426964,4004.9,4004.8,1.33396268]
[1733572442879,0.7350288,4005.4,4004.8,1.33396268]
[1733572443083,0.05426964,4004.9,4004.8,1.33396268]
[1733572443244,0.7350288,4005.4,4004.8,1.33396268]
[1733572443449,0.7350288,4005.4,4004.9,0.39026327]
[1733572444547,0.7350288,4005.4,4005.0,0.8207]
[1733572445155,0.7350288,4005.4,4004.6,0.8207]
[1733572445511,0.7350288,4005.4,4004.8,2.56857]
[1733572445642,0.7350288,4005.4,4005.1,0.8207]
[1733572446078,4.147727,4006.3,4005.3,1.07709568]
[1733572446494,4.147727,4006.3,4005.4,0.07801896]
[1733572446649,4.147727,4006.3,4005.5,0.8207]
[1733572446845,4.147727,4006.3,4005.6,1.07709568]
[1733572447051,4.147727,4006.3,4005.7,0.19227607]
[1733572447482,4.147727,4006.3,4005.8,0.07801108]
[1733572447785,4.147727,4006.3,4005.9,0.89871108]
[1733572447987,4.147727,4006.3,4006.0,0.07801108]
[1733572448282,4.147727,4006.3,4005.9,0.8207]
[1733572448487,4.147727,4006.3,4006.0,0.35405276]
[1733572448691,4.147727,4006.3,4005.7,1.93976607]
[1733572448692,4.147727,4006.3,4005.7,0.19227607]
[1733572448849,4.147727,4006.3,4004.9,0.8207]
[1733572449051,4.147727,4006.3,4005.0,0.07801859]
[1733572449052,0.7589,4006.1,4005.0,0.07801859]
[1733572449246,0.05472072,4006.0,4005.1,0.07801859]
[1733572449445,0.05472072,4006.0,4005.2,0.07801859]
[1733572449678,0.05472072,4006.0,4004.9,0.8207]
[1733572449679,1.74745,4005.9,4004.9,0.8207]
[1733572449877,0.7589,4006.1,4005.0,0.078026]
[1733572449878,1.74749,4005.8,4005.0,0.078026]
[1733572450084,1.80221072,4005.8,4005.1,0.078026]
[1733572450249,1.80221072,4005.8,4005.0,0.2646666]
[1733572450451,0.05472072,4005.8,4005.1,0.07802551]
[1733572450657,0.7589,4006.1,4005.2,0.07802551]
[1733572450888,0.7589,4006.1,4005.3,0.07802551]
[1733572451093,0.7589,4006.1,4005.0,0.2646666]
[1733572451298,0.05472072,4006.0,4005.1,0.41981885]
[1733572451590,0.05472072,4006.0,4005.2,0.07802185]
[1733572451892,0.05472072,4006.0,4005.3,0.07802185]
[1733572452051,0.05472072,4006.0,4005.1,0.36676221]
[1733572452258,0.05472072,4006.0,4005.2,0.07802115]
[1733572452457,0.05472072,4006.0,4005.2,0.29883282]
[1733572452762,0.05472072,4006.0,4005.3,0.07802153]
[1733572452987,0.05472072,4006.0,4005.2,0.29883282]
[1733572453271,0.05472072,4006.0,4005.3,0.07802203]
[1733572453588,0.05472072,4006.0,4005.3,0.8207]
[1733572453899,0.05472072,4006.0,4005.4,0.1486295]
[1733572456270,1.7473,4006.2,4005.4,0.1486295]
[1733572456456,0.05520892,4005.9,4005.4,0.1486295]
[1733572456656,1.7473,4006.2,4005.4,0.1486295]
[1733572456867,1.80255892,4006.1,4005.4,0.1486295]
[1733572457089,1.74738,4006.0,4005.4,0.1486295]
[1733572457265,1.74729,4006.2,4005.4,0.1486295]
[1733572457462,0.05520892,4005.9,4005.4,0.1486295]
[1733572457666,1.74729,4006.2,4005.4,0.1486295]
[1733572457958,0.05520892,4005.8,4005.4,0.1486295]
[1733572458300,0.05520892,4005.7,4005.4,0.1486295]
[1733572458602,1.74729,4006.2,4005.4,0.1486295]
[1733572458810,0.05520892,4005.6,4005.4,0.1486295]
[1733572458966,1.74729,4006.2,4005.4,0.1486295]
[1733572459171,0.05520892,4005.5,4005.4,0.1486295]
[1733572459379,1.74729,4006.2,4005.4,0.2266491]
[1733572459670,1.74743,4005.9,4005.1,0.341797]
[1733572459871,1.74743,4005.9,4005.2,0.07802384]
[1733572460094,1.74743,4005.9,4005.3,0.07802384]
[1733572460276,0.05546539,4005.8,4005.1,0.341797]
[1733572460491,0.05546539,4005.8,4005.2,0.07802391]
[1733572460701,0.05546539,4005.8,4005.3,0.07802391]
[1733572460906,0.05546539,4005.8,4005.1,0.341797]
[1733572461207,0.05546539,4005.8,4005.2,0.07802394]
[1733572461413,1.74756,4005.6,4005.0,0.8103]
[1733572461574,0.7505,4005.7,4005.1,0.07802474]
[1733572461775,0.05546539,4005.5,4005.0,0.8103]
[1733572462006,0.7505,4005.7,4005.1,0.07802519]
[1733572462358,0.7505,4005.7,4005.2,0.07802519]
[1733572462483,0.05546539,4005.6,4005.0,0.8103]
[1733572462814,0.05546539,4005.6,4005.1,0.07802381]
[1733572463011,0.05546539,4005.6,4005.2,0.07802381]
[1733572463211,0.05546539,4005.6,4005.0,1.066124]
[1733572463505,0.05546539,4005.6,4005.1,0.07802436]
[1733572463709,0.05546539,4005.6,4005.2,0.07802436]
[1733572463892,0.05546539,4005.6,4005.0,0.8103]
[1733572464092,0.05546539,4005.6,4005.1,0.0780244]
[1733572464407,0.05546539,4005.6,4005.2,0.0780244]
[1733572464612,0.05546539,4005.6,4005.0,0.8103]
[1733572464810,0.05546539,4005.6,4005.1,0.33384287]
[1733572465015,0.05546539,4005.6,4005.2,0.07802387]
[1733572465373,0.7505,4006.0,4005.3,0.07802387]
[1733572465572,0.05535783,4005.5,4005.4,0.07802387]
[1733572465875,0.05535783,4005.5,4005.1,2.003559]
[1733572466129,0.7505,4006.0,4005.2,0.3619045]
[1733572466338,0.05535783,4005.4,4005.3,0.07802193]
[1733572466506,0.7505,4006.0,4005.3,0.07802193]
[1733572466706,0.05535783,4005.4,4005.3,0.07802193]
[1733572466902,0.7505,4006.0,4005.2,0.28388257]
[1733572467142,0.05535783,4005.4,4005.3,0.07802215]
[1733572467429,0.7505,4006.0,4005.3,0.39559852]
[1733572467623,0.05535783,4005.4,4005.3,0.31757637]
[1733572467795,0.7505,4006.0,4005.3,0.39559884]
[1733572467995,0.05535783,4005.4,4005.3,0.31757637]
[1733572468207,1.79822904,4006.0,4005.3,0.39559895]
[1733572468408,0.05535783,4005.4,4005.3,0.31757637]
[1733572468606,0.7505,4006.0,4005.4,0.0780215]
[1733572468797,0.05535783,4005.4,4005.3,0.31757637]
[1733572468993,1.79822904,4006.0,4005.3,0.39559828]
[1733572469194,0.05535783,4005.4,4005.3,0.31757637]
[1733572469408,0.7505,4006.0,4005.4,1.74763]
[1733572469632,5.94595604,4006.3,4005.5,0.8103]
[1733572469870,4.898227,4006.3,4005.6,0.07801848]
[1733572469991,4.898227,4006.3,4005.7,0.07801848]
[1733572470192,5.94595604,4006.3,4005.8,0.07801848]
[1733572470439,4.898227,4006.3,4005.5,0.8103]
[1733572470733,4.898227,4006.3,4005.6,0.33380744]
[1733572470910,4.898227,4006.3,4005.7,0.07801444]
[1733572471121,4.898227,4006.3,4005.8,0.07801444]
[1733572471302,4.898227,4006.3,4005.6,0.255793]
[1733572471502,4.898227,4006.3,4005.7,0.35938619]
[1733572471821,5.94595604,4006.3,4005.8,0.07801389]
[1733572472035,4.898227,4006.3,4005.7,0.2813723]
[1733572472201,5.94595604,4006.3,4005.8,0.07801385]
[1733572472402,5.94595604,4006.3,4005.9,0.07801385]
[1733572472600,5.94595604,4006.3,4005.7,0.2813723]
[1733572472800,1.29461794,4006.2,4005.8,0.07801477]
[1733572473001,1.29461794,4006.2,4005.6,0.255793]
[1733572473219,2.34234698,4006.2,4005.7,0.07801579]
[1733572473426,1.29461794,4006.2,4005.8,0.07801579]
[1733572473594,1.29461794,4006.2,4005.5,0.8103]
[1733572473797,1.29461794,4006.2,4005.6,0.07801562]
[1733572473798,2.34234698,4006.2,4005.6,0.07801562]
[1733572474000,2.34234698,4006.2,4005.7,0.07801562]
[1733572474299,1.04772904,4006.1,4005.2,2.55802]
[1733572474504,1.04772904,4006.1,4005.3,0.07801731]
[1733572474712,1.04772904,4006.1,4005.4,0.36720294]
[1733572475037,2.34234698,4006.2,4005.5,0.07801731]
[1733572475198,1.04772904,4006.1,4005.6,0.07801731]
[1733572475397,1.04772904,4006.1,4005.7,0.07801731]
[1733572475598,1.04772904,4006.1,4005.4,0.28918563]
[1733572475837,1.04772904,4006.1,4005.5,0.07801722]
[1733572476005,1.04772904,4006.1,4005.6,0.07801722]
[1733572476215,1.04772904,4006.1,4005.7,0.07801722]
[1733572476401,2.34271816,4006.2,4005.8,0.8103]
[1733572476605,1.29498912,4006.2,4005.9,0.36345644]
[1733572477129,4.898227,4006.3,4006.0,0.07801111]
[1733572477337,4.147727,4006.3,4005.9,2.11085644]
[1733572477571,4.147727,4006.3,4006.0,0.07800837]
[1733572477772,4.147727,4006.3,4006.1,0.07800837]
[1733572477946,4.147727,4006.3,4006.2,0.07800837]
[1733572480145,4.147727,4006.3,4006.0,1.74733]
[1733572480473,4.147727,4006.3,4006.1,0.4777898]
[1733572480633,4.147727,4006.3,4006.2,0.07800371]
[1733572483485,4.147727,4006.3,4006.2,0.07800416]
[1733572484063,4.20324749,4006.3,4006.2,0.07800416]
[1733572486090,4.20324749,4006.3,4006.2,2.90206857]
[1733572486262,4.20324749,4006.3,4006.2,3.95957543]
[1733572486797,4.20324749,4006.3,4006.2,3.95957075]
[1733572487096,4.147727,4006.3,4006.2,3.95957075]
[1733572487470,4.20325576,4006.3,4006.2,3.88157127]
[1733572487971,4.20325576,4006.3,4006.2,3.95956978]
[1733572493314,4.147727,4006.3,4006.2,3.88157127]
[1733572493487,4.147727,4006.3,4006.2,3.95956582]
[1733572493691,4.20400804,4006.3,4006.2,3.95956582]
[1733572496826,4.20400804,4006.3,4006.2,3.95956551]
[1733572498610,4.20400804,4006.3,4006.2,4.50956551]
[1733572498922,8.82e-06,4006.3,4006.2,4.50956551]
[1733572499224,1.04772904,4007.6,4007.2,1.74683]
[1733572499408,1.04772904,4007.6,4007.3,1.07677441]
[1733572499618,0.05275982,4007.5,4007.3,1.07677441]
[1733572499820,0.8309,4007.4,4006.8,0.02495307]
[1733572500124,0.8309,4007.4,4004.9,3.35063169]
[1733572500125,1.74704,4006.8,4005.6,1.07677441]
[1733572500328,1.04399466,4006.5,4006.2,1.07677441]
[1733572500529,1.29470833,4006.6,4006.2,1.07677441]
[1733572500822,2.92021315,4007.1,4006.5,1.07677441]
[1733572500823,1.04399466,4007.0,4006.5,1.07677441]
[1733572501025,1.87489466,4007.1,4006.5,1.07677441]
[1733572501828,1.87489466,4007.1,4006.6,0.07799534]
[1733572502124,1.87489466,4007.1,4006.5,1.07677441]
[1733572502125,0.8309,4007.1,4006.5,1.83797441]
[1733572502329,2.31531665,4007.4,4006.5,1.83797441]
[1733572502330,1.04399466,4007.3,4006.8,1.07677441]
[1733572502624,0.74932466,4007.4,4006.8,1.07677441]
[1733572502625,3.08782953,4007.4,4006.8,1.07677441]
[1733572502825,1.79331932,4007.4,4006.8,1.07677441]
[1733572503541,0.74932466,4007.4,4006.9,0.07798918]
[1733572503852,1.74692,4007.1,4006.0,0.8287]
[1733572503988,1.85639466,4007.0,4006.1,1.1547724]
[1733572504189,1.04399466,4006.9,4006.2,0.07799799]
[1733572504389,1.04399466,4006.8,4006.3,0.07799799]
[1733572504631,0.8124,4006.7,4005.2,0.8287]
[1733572504922,0.8124,4006.7,4005.7,1.07677441]
[1733572504923,1.04399466,4006.5,4005.7,1.07677441]
[1733572505122,1.04399466,4006.5,4005.8,0.07800677]
[1733572505324,0.8124,4006.4,4005.9,0.07800677]
[1733572505526,0.8124,4006.4,4005.7,1.07677441]
[1733572505734,1.85639466,4006.4,4005.7,1.07677441]
[1733572505903,1.85639466,4006.4,4005.8,0.07800996]
[1733572506229,1.85639466,4006.4,4005.9,0.07800996]
[1733572506387,0.05268543,4006.3,4005.7,1.07677441]
[1733572506591,0.05268543,4006.3,4005.8,0.0780113]
[1733572506827,0.05268543,4006.3,4005.9,0.0780113]
[1733572507012,0.05268543,4006.3,4006.0,0.0780113]
[1733572507212,0.05268543,4006.3,4005.4,2.33250698]
[1733572507391,0.05268543,4006.3,4005.5,0.59466249]
[1733572507592,0.05268543,4006.3,4005.6,0.07800979]
[1733572507792,0.05268543,4006.3,4005.7,0.07800979]
[1733572508029,0.05268543,4006.3,4005.8,0.07800979]
[1733572508326,0.05268543,4006.3,4005.9,0.07800979]
[1733572508501,0.05268543,4006.3,4006.0,0.07800979]
[1733572508713,0.05268543,4006.3,4005.5,0.5166527]
[1733572508908,0.05268543,4006.3,4005.6,0.31068097]
[1733572509233,0.05268543,4006.3,4005.7,0.10297156]
[1733572509434,0.05268543,4006.3,4005.8,0.07800968]
[1733572509636,0.05268543,4006.3,4005.9,0.07800968]
[1733572509938,0.05268543,4006.3,4006.0,0.07800968]
[1733572510100,0.05268543,4006.3,4005.6,2.05823097]
[1733572510438,2.39283137,4006.3,4005.7,0.51708204]
[1733572510742,1.04456228,4006.2,4005.2,0.8287]
[1733572511034,1.04456228,4005.9,4005.3,0.07801974]
[1733572511247,1.04456228,4005.9,4005.2,0.8287]
[1733572511248,2.34014594,4005.9,4005.4,0.07801974]
[1733572511447,0.05224322,4005.8,4005.5,0.07801974]
[1733572511651,0.05224322,4005.8,4005.2,0.8287]
[1733572511817,0.05224322,4005.8,4005.3,0.07801958]
[1733572512017,0.05224322,4005.8,4005.2,0.8287]
[1733572512018,0.05224322,4005.8,4005.4,0.07801958]
[1733572512224,0.05224322,4005.8,4005.5,0.07801958]
[1733572512459,0.05224322,4005.8,4005.2,0.8287]
[1733572512627,0.05224322,4005.8,4005.3,0.07802004]
[1733572512825,0.8124,4005.7,4005.4,0.07802004]
[1733572513035,1.85696228,4005.7,4004.8,0.8287]
[1733572513337,0.05224322,4005.6,4004.9,0.39414428]
[1733572513640,0.05224322,4005.6,4005.0,0.07802358]
[1733572513818,0.05224322,4005.6,4005.1,0.07802358]
[1733572514015,0.05224322,4005.6,4005.2,0.07802358]
[1733572514250,0.05224322,4005.6,4004.9,0.3161207]
[1733572514437,0.05224322,4005.6,4005.0,0.36729709]
[1733572514752,0.05224322,4005.6,4005.1,0.07802202]
[1733572514925,2.79216228,4005.5,4004.5,0.8287]
[1733572515135,4.08819734,4005.5,4004.6,0.07802666]
[1733572515451,1.0968055,4005.4,4004.7,0.07802666]
[1733572515652,0.8124,4005.3,4004.8,0.07802661]
[1733572515856,0.8124,4005.3,4004.9,0.07802661]
[1733572516019,0.8124,4005.3,4004.7,0.26547967]
[1733572516220,0.05224322,4005.2,4004.8,0.07802723]
[1733572516542,0.8124,4005.3,4004.7,0.26547967]
[1733572516848,0.05224322,4005.1,4004.8,0.36224808]
[1733572517053,0.8124,4005.3,4004.8,0.28422097]
[1733572517218,0.05224322,4005.0,4004.9,0.07802666]
[1733572517549,0.05224322,4005.0,4004.9,0.10299459]
[1733572517751,2.33987662,4006.0,4005.0,0.8287]
[1733572517955,2.33987662,4006.0,4004.9,1.85084459]
[1733572517956,2.33987662,4006.1,4005.5,0.8287]
[1733572518117,1.04456228,4006.1,4005.5,0.8287]
[1733572518319,0.8124,4006.2,4005.5,0.8287]
[1733572518320,1.85696228,4006.2,4005.5,0.8287]
[1733572519168,0.8124,4006.2,4005.5,0.8287]
[1733572519339,0.8124,4006.2,4005.6,0.26012736]
[1733572519537,1.04456228,4006.3,4005.9,1.74741]
[1733572519740,1.04456228,4006.5,4005.9,1.74741]
[1733572520060,1.04456228,4006.5,4005.6,2.59263434]
[1733572520061,1.04456228,4006.6,4005.7,1.7475]
[1733572520266,1.04456228,4006.5,4005.8,0.59488989]
[1733572520426,1.04456228,4006.5,4005.8,0.51688343]
[1733572520822,1.04456228,4006.6,4005.8,0.51688343]
[1733572521039,1.04456228,4006.6,4005.5,2.57629]
[1733572521040,1.82236228,4006.5,4005.5,2.57629]
[1733572521269,1.82236228,4006.5,4005.6,0.07800822]
[1733572521464,1.82236228,4006.5,4005.7,0.07800822]
[1733572521465,1.04456228,4006.4,4005.7,0.07800822]
[1733572521672,1.04456228,4006.4,4005.5,2.57629]
[1733572521838,1.04456228,4006.4,4005.6,0.07800925]
[1733572522045,1.04456228,4006.4,4005.7,0.07800925]
[1733572522235,1.04456228,4006.4,4005.5,2.57629]
[1733572522569,1.04456228,4006.4,4005.6,0.33563841]
[1733572522739,1.04456228,4006.4,4005.7,1.82550941]
[1733572522938,1.04456228,4006.4,4005.7,1.7475]
[1733572523138,0.7778,4006.5,4005.7,1.7475]
[1733572523139,1.82236228,4006.5,4005.7,1.7475]
[1733572523468,1.04456228,4006.4,4005.7,1.7475]
[1733572523666,1.04456228,4006.4,4005.6,0.257629]
[1733572523964,2.07309854,4006.5,4005.7,0.07800971]
[1733572523965,1.04456228,4006.3,4005.7,0.07800971]
[1733572524168,2.79183228,4006.3,4005.2,0.8184]
[1733572524372,2.79183228,4006.3,4005.3,0.07801071]
[1733572524665,1.04456228,4006.0,4005.4,0.07801071]
[1733572524871,1.04456228,4006.0,4005.2,0.8184]
[1733572524872,1.68774953,4006.0,4005.2,0.8184]
[1733572525054,1.04456228,4006.0,4005.3,0.07801944]
[1733572525262,1.04456228,4006.0,4005.0,1.74778]
[1733572525569,2.79194228,4006.0,4005.1,0.07801978]
[1733572525769,0.7778,4005.8,4005.2,0.07801978]
[1733572526068,2.33993909,4006.0,4005.2,0.07801971]
[1733572526284,1.04456228,4006.0,4005.3,0.07801956]
[1733572526573,1.04456228,4006.0,4005.1,1.74776]
[1733572526871,1.04456228,4006.0,4005.2,0.07801888]
[1733572527165,1.04456228,4006.0,4005.3,0.07801888]
[1733572527364,1.04456228,4006.0,4005.1,2.004376]
[1733572527570,1.04456228,4006.0,4005.2,0.07801964]
[1733572527777,1.04456228,4006.0,4005.3,0.07801964]
[1733572527928,1.04456228,4006.0,4005.1,2.004376]
[1733572528134,1.04456228,4006.0,4005.2,0.07801948]
[1733572528359,1.04456228,4006.0,4005.3,0.07801948]
[1733572528566,0.7778,4005.3,4003.9,1.03647572]
[1733572528886,1.74776,4005.2,4003.9,0.02497295]
[1733572529032,1.09609029,4005.2,4004.0,1.82624356]
[1733572529376,2.79234228,4005.1,4004.1,0.07803356]
[1733572529534,2.79234228,4005.1,4004.2,0.07803356]
[1733572529853,0.0515156,4005.0,4004.3,0.07803356]
[1733572530071,0.0515156,4005.0,4003.9,1.74828]
[1733572530248,1.09607788,4005.0,4004.0,0.07804192]
[1733572530436,1.09607788,4005.0,4004.1,0.07804192]
[1733572530437,0.0515156,4005.0,4004.1,0.07804192]
[1733572530636,0.7778,4004.9,4004.2,0.07804192]
[1733572530969,0.7778,4004.9,4004.3,0.07804192]
[1733572531270,0.7778,4004.9,4003.9,1.7732529]
[1733572531271,0.0515156,4004.8,4003.9,1.74828]
[1733572531462,0.0515156,4004.8,4004.0,0.33470813]
[1733572531665,0.0515156,4004.8,4004.1,0.07804013]
[1733572531852,0.0515156,4004.8,4004.2,0.07804013]
[1733572532172,0.0515156,4004.8,4004.3,0.07804013]
[1733572532359,0.0515156,4004.8,4004.0,0.256668]
[1733572532543,0.0515156,4004.8,4004.1,0.07804096]
[1733572532757,0.0515156,4004.8,4004.2,0.07804096]
[1733572532970,0.0515156,4004.8,4004.1,0.07804096]
[1733572533269,0.0515156,4004.8,4004.2,0.07804096]
[1733572533583,0.0515156,4004.8,4004.3,0.07804096]
[1733572533734,0.0515156,4004.8,4004.0,2.004908]
[1733572533938,0.0515156,4004.8,4004.1,0.2785312]
[1733572534270,0.0515156,4004.8,4004.2,0.0780404]
[1733572534473,0.0515156,4004.8,4004.3,0.0780404]
[1733572534681,0.0515156,4004.8,4003.7,0.8184]
[1733572534840,0.0515156,4004.8,4003.8,0.07804239]
[1733572534841,1.7994256,4004.8,4003.8,0.07804239]
[1733572535044,0.7916,4004.6,4003.9,0.07804239]
[1733572535239,0.7916,4004.6,4004.0,0.07804239]
[1733572535544,0.7916,4004.6,4003.5,1.74846]
[1733572535545,0.05097785,4004.5,4003.5,1.74846]
[1733572535748,0.05097785,4004.5,4003.6,0.07804876]
[1733572535939,1.79901785,4004.5,4003.7,0.07804876]
[1733572536141,1.74808,4004.4,4003.8,0.07804876]
[1733572536360,1.74808,4004.4,4003.4,0.783]
[1733572536569,0.05088682,4004.3,4003.5,0.07805221]
[1733572536753,1.79900682,4004.3,4003.6,0.07805221]
[1733572536951,0.7916,4004.2,4003.7,0.07805221]
[1733572537265,0.7916,4004.2,4003.1,0.783]
[1733572537440,0.05079991,4004.1,4003.3,1.74855]
[1733572537640,0.05079991,4004.1,4003.4,0.33901322]
[1733572537850,0.7916,4004.2,4003.5,0.07805293]
[1733572538049,0.05079991,4004.0,4003.5,0.07805293]
[1733572538254,0.7916,4004.2,4003.5,0.07805293]
[1733572538485,0.05079991,4003.9,4003.5,0.28680525]
[1733572538647,0.7916,4004.2,4003.6,0.07805293]
[1733572538848,0.05079991,4003.8,4003.7,0.07805024]
[1733572539067,0.7916,4004.2,4003.7,0.07805024]
[1733572539267,0.7916,4004.2,4003.4,1.7485]
[1733572539581,0.05004696,4004.1,4003.5,0.25289952]
[1733572539752,0.05004696,4004.1,4003.6,1.82646952]
[1733572539942,0.05004696,4004.1,4003.5,0.17485]
[1733572539943,0.05004696,4004.1,4003.7,0.90224952]
[1733572540144,0.05004696,4004.1,4003.9,1.74829]
[1733572540343,0.8299,4004.7,4003.9,1.74829]
[1733572540589,0.8299,4004.7,4003.9,2.005539]
[1733572540742,0.05005523,4004.6,4003.9,2.005539]
[1733572540939,0.05005523,4004.6,4004.0,1.74824]
[1733572543051,0.05005523,4004.6,4003.9,0.257249]
[1733572543287,0.05005523,4004.6,4004.0,0.07804166]
[1733572543584,0.05005523,4004.6,4003.9,0.257249]
[1733572543761,0.05005523,4004.6,4004.0,0.36101906]
[1733572543963,0.05005523,4004.6,4004.0,0.2829769]
[1733572545274,0.05005523,4004.6,4003.7,0.8242]
[1733572545452,0.05005523,4004.6,4003.8,0.07804513]
[1733572545453,0.8299,4004.5,4003.8,0.07804513]
[1733572545657,0.8299,4004.5,4003.4,1.74851]
[1733572545886,0.05011317,4004.4,4003.5,0.07804572]
[1733572546191,0.05011317,4004.4,4003.6,0.07804572]
[1733572546355,0.05011317,4004.4,4003.7,0.07804572]
[1733572546555,0.05011317,4004.4,4003.4,1.74851]
[1733572546791,0.05011317,4004.4,4003.5,0.33531702]
[1733572546993,0.05011317,4004.4,4003.6,0.07804602]
[1733572549195,0.8299,4004.3,4003.5,0.257271]
[1733572549554,0.05011317,4004.2,4003.5,0.257271]
[1733572550378,0.05011317,4004.2,4003.6,0.0780499]
[1733572550583,0.05011317,4004.2,4003.6,0.20838209]
[1733572552552,0.8299,4004.1,4003.5,0.257271]
[1733572552701,0.8299,4004.1,4003.6,0.07805195]
[1733572552993,0.05005524,4004.0,4003.2,1.74859]
[1733572553158,0.05005524,4004.0,4003.3,0.07805162]
[1733572553359,0.05005524,4004.0,4003.4,0.07805162]